fUSD/lending_fUSD_20260701
["ID","MTS","AMOUNT","RATE_DAILY","PERIOD"]
[426831821,1782921067000,-1605.5331,0.00016438,2]
[426831835,1782921067000,-166.66,0.00016618,2]
[426831839,1782921067000,-164.48,0.00016645,2]
[426831846,1782921067000,-250.0,0.00016971,2]
[426831855,1782921067000,-1500.0,0.00017517,2]
[426831853,1782921067000,-170.19,0.00017426,2]
[426831852,1782921067000,-170.19,0.00017426,2]
[426831856,1782921067000,-188.518274,0.0001764,2]
[426831843,1782921067000,-151.0,0.00016921,2]
[426831840,1782921067000,-418.36,0.00016645,2]
[426831845,1782921067000,-1500.0,0.00016969,2]
[426831842,1782921067000,-3921.0,0.00016921,5]
[426831851,1782921067000,-1713.18368066,0.00017399,5]
[426831836,1782921067000,-152.31,0.00016632,2]
[426831834,1782921067000,-176.36,0.00016611,2]
[426831908,1782921068000,-955.614,0.00018456,2]
[426831910,1782921068000,-2908.46057476,0.00018548,2]
[426831906,1782921068000,-1362.0,0.00018456,2]
[426831913,1782921068000,-500.0,0.00018615,2]
[426831920,1782921068000,-151.0,0.00018777,2]
[426831921,1782921068000,-831.27505208,0.00018875,2]
[426831915,1782921068000,-1252.0,0.00018721,2]
[426831918,1782921068000,-151.0,0.00018777,2]
[426831916,1782921068000,-151.0,0.00018761,2]
[426831911,1782921068000,-163.80783072,0.00018575,2]
[426831935,1782921068000,-250.0,0.00019178,2]
[426831917,1782921068000,-151.0,0.00018761,2]
[426831919,1782921068000,-151.0,0.00018777,2]
[426831923,1782921068000,-1128.49374541,0.00018998,2]
[426831922,1782921068000,-152.31,0.000189,2]
[426831924,1782921068000,-5260.9545314,0.00019,2]
[426831925,1782921068000,-160.0,0.00019,2]
[426831927,1782921068000,-254.77,0.00019141,7]
[426831928,1782921068000,-1500.0,0.00019161,2]
[426831926,1782921068000,-3326.0,0.00019141,5]
[426831909,1782921068000,-3651.0,0.00018456,2]
[426831914,1782921068000,-507.0,0.00018626,2]
[426831907,1782921068000,-1231.0,0.00018456,2]
[426831893,1782921068000,-1605.5331,0.00018356,2]
[426831905,1782921068000,-1278.0,0.00018456,2]
[426831885,1782921068000,-500.0,0.00018199,2]
[426831882,1782921068000,-185.77203028,0.00018031,10]
[426831883,1782921068000,-1500.0,0.00018065,2]
[426831884,1782921068000,-152.31,0.00018144,2]
[426831887,1782921068000,-500.0,0.00018199,2]
[426831929,1782921068000,-500.0,0.00019177,2]
[426831886,1782921068000,-500.0,0.00018199,2]
[426831888,1782921068000,-529.58,0.00018199,2]
[426831892,1782921068000,-151.0,0.00018356,2]
[426831890,1782921068000,-209.03039852,0.0001823,2]
[426831904,1782921068000,-230.0,0.00018456,2]
[426831891,1782921068000,-151.0,0.00018356,2]
[426831898,1782921068000,-783.095307,0.00018356,2]
[426831894,1782921068000,-1605.5331,0.00018356,2]
[426831900,1782921068000,-783.095311,0.00018356,2]
[426831896,1782921068000,-1605.53309161,0.00018356,2]
[426831897,1782921068000,-783.095307,0.00018356,2]
[426831895,1782921068000,-1605.5331,0.00018356,2]
[426831902,1782921068000,-151.0,0.0001841,2]
[426831912,1782921068000,-1500.0,0.00018613,2]
[426831901,1782921068000,-81155.05,0.00018356,2]
[426831903,1782921068000,-3566.0,0.00018456,2]
[426831899,1782921068000,-783.095307,0.00018356,2]
[426831931,1782921068000,-500.0,0.00019177,2]
[426831889,1782921068000,-600.0,0.00018202,2]
[426831930,1782921068000,-521.36271652,0.00019177,2]
[426831959,1782921068000,-357.214998,0.00019178,2]
[426831961,1782921068000,-357.214998,0.00019178,2]
[426831963,1782921068000,-357.214998,0.00019178,2]
[426831960,1782921068000,-357.214998,0.00019178,2]
[426831962,1782921068000,-357.214998,0.00019178,2]
[426831966,1782921068000,-357.214998,0.00019178,2]
[426831967,1782921068000,-357.214998,0.00019178,2]
[426831965,1782921068000,-357.214998,0.00019178,2]
[426831964,1782921068000,-357.214998,0.00019178,2]
[426831969,1782921068000,-357.214998,0.00019178,2]
[426831968,1782921068000,-357.214998,0.00019178,2]
[426831971,1782921068000,-151.0,0.00019178,2]
[426831979,1782921068000,-1129.0,0.00019477,2]
[426831974,1782921068000,-507.0,0.00019253,3]
[426831975,1782921068000,-2193.74801449,0.00019375,2]
[426831972,1782921068000,-153.934412,0.00019178,2]
[426831977,1782921068000,-3139.0,0.00019452,5]
[426831976,1782921068000,-3870.03153083,0.00019375,2]
[426831978,1782921068000,-385.0,0.00019452,2]
[426831980,1782921068000,-2199.22252474,0.00019621,2]
[426831981,1782921068000,-152.31,0.00019656,2]
[426831934,1782921068000,-250.0,0.00019178,2]
[426831973,1782921068000,-234.85,0.00019193,2]
[426831958,1782921068000,-357.214998,0.00019178,2]
[426831970,1782921068000,-357.215007,0.00019178,2]
[426831953,1782921068000,-357.214998,0.00019178,2]
[426831957,1782921068000,-357.214998,0.00019178,2]
[426831932,1782921068000,-529.58,0.00019177,2]
[426831933,1782921068000,-250.0,0.00019178,2]
[426831936,1782921068000,-270.37119352,0.00019178,2]
[426831939,1782921068000,-20537.28,0.00019178,2]
[426831942,1782921068000,-151.0,0.00019178,2]
[426831941,1782921068000,-151.0,0.00019178,2]
[426831938,1782921068000,-151.0,0.00019178,2]
[426831937,1782921068000,-151.0,0.00019178,2]
[426831944,1782921068000,-151.0,0.00019178,2]
[426831946,1782921068000,-151.0,0.00019178,2]
[426831943,1782921068000,-151.0,0.00019178,2]
[426831945,1782921068000,-151.0,0.00019178,2]
[426831940,1782921068000,-151.0,0.00019178,2]
[426831948,1782921068000,-151.0,0.00019178,2]
[426831950,1782921068000,-301.598023,0.00019178,2]
[426831947,1782921068000,-151.0,0.00019178,2]
[426831949,1782921068000,-151.0,0.00019178,2]
[426831951,1782921068000,-357.214998,0.00019178,2]
[426831952,1782921068000,-357.214998,0.00019178,2]
[426831955,1782921068000,-357.214998,0.00019178,2]
[426831956,1782921068000,-357.214998,0.00019178,2]
[426831954,1782921068000,-357.214998,0.00019178,2]
[426832019,1782921069000,-205.42553888,0.0002089,2]
[426832024,1782921069000,-1100.0,0.000209,7]
[426832018,1782921069000,-247.0,0.00020821,2]
[426832023,1782921069000,-10366.20044814,0.000209,2]
[426832015,1782921069000,-1357.21579854,0.000206,2]
[426832012,1782921069000,-1129.0,0.00020502,2]
[426832017,1782921069000,-10366.20044814,0.000206,2]
[426832014,1782921069000,-5534.8141411,0.000206,2]
[426832009,1782921069000,-328.65086312,0.000204,2]
[426832016,1782921069000,-328.65086312,0.000206,2]
[426832020,1782921069000,-5534.8141411,0.000209,2]
[426832021,1782921069000,-1357.21579854,0.000209,2]
[426832035,1782921069000,-500.0,0.00021134,2]
[426832026,1782921069000,-747.64407343,0.00021,2]
[426832036,1782921069000,-500.0,0.00021134,2]
[426832027,1782921069000,-4485.60226805,0.00021,2]
[426832025,1782921069000,-160.0,0.00021,7]
[426832030,1782921069000,-1357.21579854,0.000211,2]
[426832029,1782921069000,-5534.8141411,0.000211,2]
[426832028,1782921069000,-150.0,0.00021,2]
[426832031,1782921069000,-328.65086312,0.000211,2]
[426832032,1782921069000,-10366.20044814,0.000211,2]
[426832034,1782921069000,-507.0,0.00021131,4]
[426832037,1782921069000,-500.0,0.00021134,2]
[426832008,1782921069000,-1357.21579854,0.000204,2]
[426832022,1782921069000,-328.65086312,0.000209,2]
[426832010,1782921069000,-10366.20044814,0.000204,2]
[426831989,1782921069000,-221.0,0.00020007,2]
[426832007,1782921069000,-5534.8141411,0.000204,2]
[426831983,1782921069000,-5789.33571873,0.00019875,2]
[426831984,1782921069000,-7833.177,0.00019875,2]
[426831982,1782921069000,-1500.0,0.00019709,2]
[426832040,1782921069000,-500.0,0.00021134,2]
[426831987,1782921069000,-483.11,0.0001995,2]
[426831985,1782921069000,-507.0,0.00019879,3]
[426831990,1782921069000,-250.0,0.00020007,2]
[426831986,1782921069000,-176.36,0.00019933,2]
[426831988,1782921069000,-1203.51868953,0.0002,2]
[426831991,1782921069000,-210.264,0.00020007,2]
[426831992,1782921069000,-250.0,0.00020007,2]
[426832001,1782921069000,-10366.20044814,0.000202,2]
[426832011,1782921069000,-152.31,0.00020412,2]
[426831999,1782921069000,-1357.21579854,0.000202,2]
[426831993,1782921069000,-150.0,0.00020007,2]
[426831996,1782921069000,-385.0,0.00020136,2]
[426831995,1782921069000,-150.472,0.00020007,2]
[426831994,1782921069000,-150.0,0.00020007,2]
[426832002,1782921069000,-175.20556228,0.00020257,2]
[426831998,1782921069000,-5534.8141411,0.000202,2]
[426831997,1782921069000,-3000.0,0.00020199,2]
[426832004,1782921069000,-152.0,0.00020273,3]
[426832003,1782921069000,-1500.0,0.00020257,2]
[426832005,1782921069000,-412.59865391,0.000203,2]
[426832006,1782921069000,-151.0,0.00020381,2]
[426832013,1782921069000,-507.0,0.00020505,4]
[426832000,1782921069000,-328.65086312,0.000202,2]
[426832041,1782921069000,-500.0,0.00021134,2]
[426832033,1782921069000,-258.0,0.00021118,2]
[426832042,1782921069000,-500.0,0.00021134,2]
[426832069,1782921069000,-151.0,0.00021353,2]
[426832068,1782921069000,-151.0,0.00021353,2]
[426832074,1782921069000,-151.0,0.00021353,2]
[426832075,1782921069000,-151.0,0.00021353,2]
[426832076,1782921069000,-151.0,0.00021353,2]
[426832078,1782921069000,-151.0,0.00021353,2]
[426832077,1782921069000,-151.0,0.00021353,2]
[426832082,1782921069000,-151.0,0.00021353,2]
[426832080,1782921069000,-151.0,0.00021353,2]
[426832081,1782921069000,-151.0,0.00021353,2]
[426832083,1782921069000,-1022.35,0.0002137,2]
[426832079,1782921069000,-151.0,0.00021353,2]
[426832071,1782921069000,-151.0,0.00021353,2]
[426832085,1782921069000,-747.64407343,0.000214,2]
[426832088,1782921069000,-224.56147632,0.00021419,2]
[426832092,1782921069000,-1278.0,0.00021456,2]
[426832087,1782921069000,-268.74354112,0.00021419,2]
[426832086,1782921069000,-151.0,0.00021407,2]
[426832093,1782921069000,-1362.0,0.00021456,2]
[426832089,1782921069000,-500.0,0.00021423,2]
[426832094,1782921069000,-1231.0,0.00021456,2]
[426832097,1782921069000,-208.27442596,0.00021463,2]
[426832095,1782921069000,-935.0,0.00021456,2]
[426832090,1782921069000,-3566.0,0.00021456,2]
[426832096,1782921069000,-3651.0,0.00021456,2]
[426832039,1782921069000,-500.0,0.00021134,2]
[426832091,1782921069000,-223.0,0.00021456,2]
[426832066,1782921069000,-151.0,0.00021353,2]
[426832084,1782921069000,-2199.22252474,0.0002139,2]
[426832072,1782921069000,-267.57778516,0.00021353,2]
[426832070,1782921069000,-151.0,0.00021353,2]
[426832048,1782921069000,-500.0,0.00021134,2]
[426832050,1782921069000,-408.96803117,0.00021134,2]
[426832045,1782921069000,-500.0,0.00021134,2]
[426832038,1782921069000,-500.0,0.00021134,2]
[426832043,1782921069000,-500.0,0.00021134,2]
[426832047,1782921069000,-500.0,0.00021134,2]
[426832049,1782921069000,-235.87212468,0.00021134,2]
[426832046,1782921069000,-500.0,0.00021134,2]
[426832052,1782921069000,-747.64407343,0.000212,2]
[426832054,1782921069000,-1357.21579854,0.000213,2]
[426832051,1782921069000,-150.0,0.00021134,2]
[426832062,1782921069000,-151.0,0.00021353,2]
[426832044,1782921069000,-468.60472143,0.00021134,2]
[426832064,1782921069000,-151.0,0.00021353,2]
[426832067,1782921069000,-151.0,0.00021353,2]
[426832073,1782921069000,-151.0,0.00021353,2]
[426832063,1782921069000,-151.0,0.00021353,2]
[426832053,1782921069000,-5534.8141411,0.000213,2]
[426832059,1782921069000,-215.58700553,0.00021353,2]
[426832065,1782921069000,-151.0,0.00021353,2]
[426832055,1782921069000,-10366.20044814,0.000213,2]
[426832058,1782921069000,-2432.58328592,0.00021353,2]
[426832057,1782921069000,-500.0,0.00021353,2]
[426832060,1782921069000,-151.0,0.00021353,2]
[426832056,1782921069000,-152.0,0.00021334,4]
[426832061,1782921069000,-2074.0,0.00021353,2]
[426832138,1782921070000,-819.37534968,0.00022,7]
[426832140,1782921070000,-5534.8141411,0.000221,2]
[426832139,1782921070000,-530.89454282,0.000221,7]
[426832144,1782921070000,-238.54559779,0.00022339,2]
[426832135,1782921070000,-500.0,0.00022,3]
[426832126,1782921070000,-296.83988582,0.00021926,2]
[426832133,1782921070000,-500.0,0.00022,3]
[426832132,1782921070000,-500.0,0.00022,3]
[426832131,1782921070000,-500.0,0.00022,3]
[426832127,1782921070000,-248.03871643,0.00021926,2]
[426832143,1782921070000,-2432.58328592,0.00022175,2]
[426832128,1782921070000,-388.0,0.00021963,2]
[426832134,1782921070000,-500.0,0.00022,3]
[426832141,1782921070000,-1357.21579854,0.000221,2]
[426832155,1782921070000,-150.0,0.00022488,4]
[426832136,1782921070000,-500.0,0.00022,3]
[426832137,1782921070000,-500.0,0.00022,3]
[426832145,1782921070000,-151.0,0.00022353,2]
[426832154,1782921070000,-1565.81,0.00022466,2]
[426832146,1782921070000,-507.0,0.00022384,6]
[426832156,1782921070000,-154.92213951,0.00022488,4]
[426832147,1782921070000,-152.0,0.00022396,5]
[426832148,1782921070000,-10366.20044814,0.000224,2]
[426832150,1782921070000,-2432.58328592,0.00022449,2]
[426832149,1782921070000,-537.6845,0.00022449,2]
[426832151,1782921070000,-267.57778516,0.00022449,2]
[426832153,1782921070000,-997.1,0.00022466,2]
[426832142,1782921070000,-10366.20044814,0.000221,2]
[426832125,1782921070000,-166.0,0.00021918,2]
[426832099,1782921070000,-5534.8141411,0.000215,2]
[426832129,1782921070000,-206.0,0.00021976,2]
[426832152,1782921070000,-1960.3,0.00022466,2]
[426832103,1782921070000,-747.64407343,0.000216,2]
[426832104,1782921070000,-2432.58328592,0.00021627,2]
[426832100,1782921070000,-1357.21579854,0.000215,2]
[426832108,1782921070000,-10366.20044814,0.000217,2]
[426832101,1782921070000,-10366.20044814,0.000215,2]
[426832106,1782921070000,-5534.8141411,0.000217,2]
[426832102,1782921070000,-895.77122738,0.00021528,2]
[426832105,1782921070000,-1128.49374541,0.00021658,2]
[426832098,1782921070000,-412.5986539,0.00021466,2]
[426832109,1782921070000,-507.0,0.00021758,5]
[426832107,1782921070000,-1357.21579854,0.000217,2]
[426832111,1782921070000,-500.97800174,0.00021799,2]
[426832110,1782921070000,-500.0,0.00021799,2]
[426832116,1782921070000,-10366.20044814,0.000219,2]
[426832112,1782921070000,-529.58,0.00021799,2]
[426832117,1782921070000,-518.5,0.00021901,2]
[426832118,1782921070000,-2432.58328592,0.00021901,2]
[426832115,1782921070000,-1357.21579854,0.000219,2]
[426832113,1782921070000,-5534.8141411,0.000219,2]
[426832114,1782921070000,-747.64407343,0.000219,2]
[426832120,1782921070000,-267.57778516,0.00021901,2]
[426832119,1782921070000,-1343.97991791,0.00021901,2]
[426832121,1782921070000,-5000.0,0.00021918,2]
[426832122,1782921070000,-150.0,0.00021918,2]
[426832130,1782921070000,-500.0,0.00022,3]
[426832123,1782921070000,-166.0,0.00021918,2]
[426832124,1782921070000,-166.0,0.00021918,2]
[426832159,1782921070000,-150.0,0.00022488,4]
[426832161,1782921070000,-195.63,0.000225,14]
[426832162,1782921070000,-351.0,0.000225,7]
[426832189,1782921070000,-2337.0,0.00023236,3]
[426832192,1782921070000,-10366.20044814,0.000233,2]
[426832193,1782921070000,-500.0,0.00023325,2]
[426832195,1782921070000,-203.26110224,0.00023325,2]
[426832203,1782921070000,-894.56229931,0.00023463,2]
[426832205,1782921070000,-183.35530344,0.00023463,2]
[426832201,1782921070000,-156.95311677,0.00023463,2]
[426832194,1782921070000,-313.04440898,0.00023325,2]
[426832196,1782921070000,-13602.25062841,0.00023333,2]
[426832198,1782921070000,-160.10770816,0.00023462,2]
[426832200,1782921070000,-151.46609221,0.00023463,2]
[426832204,1782921070000,-155.08791229,0.00023463,2]
[426832206,1782921070000,-346.30434558,0.00023463,2]
[426832202,1782921070000,-189.29341959,0.00023463,2]
[426832199,1782921070000,-198.42269947,0.00023462,2]
[426832197,1782921070000,-152.0,0.00023457,6]
[426832208,1782921070000,-293.13052171,0.00023463,2]
[426832218,1782921070000,-197.67615389,0.00023463,2]
[426832207,1782921070000,-188.41178538,0.00023463,2]
[426832211,1782921070000,-215.99411706,0.00023463,2]
[426832216,1782921070000,-173.80734405,0.00023463,2]
[426832214,1782921070000,-213.89431835,0.00023463,2]
[426832217,1782921070000,-220.98982801,0.00023463,2]
[426832212,1782921070000,-156.75526731,0.00023463,2]
[426832213,1782921070000,-243.1452871,0.00023463,2]
[426832210,1782921070000,-152.31584336,0.00023463,2]
[426832157,1782921070000,-150.0,0.00022488,4]
[426832188,1782921070000,-500.0,0.00023169,2]
[426832190,1782921070000,-1303.58,0.00023257,2]
[426832215,1782921070000,-156.29882959,0.00023463,2]
[426832191,1782921070000,-2432.58328592,0.00023271,2]
[426832209,1782921070000,-319.54133576,0.00023463,2]
[426832163,1782921070000,-151.0,0.00022521,2]
[426832160,1782921070000,-500.0,0.00022494,2]
[426832165,1782921070000,-10366.20044814,0.000226,2]
[426832169,1782921070000,-10366.20044814,0.000228,2]
[426832164,1782921070000,-160.0,0.00022533,2]
[426832166,1782921070000,-412.5986539,0.00022632,2]
[426832185,1782921070000,-150.0,0.00023014,2]
[426832158,1782921070000,-150.0,0.00022488,4]
[426832168,1782921070000,-160.0,0.000228,3]
[426832170,1782921070000,-496.75296727,0.00022907,2]
[426832172,1782921070000,-520.85062762,0.00022997,2]
[426832182,1782921070000,-150.0,0.00023007,2]
[426832167,1782921070000,-2432.58328592,0.00022723,2]
[426832175,1782921070000,-212.0,0.00022997,2]
[426832187,1782921070000,-2199.22252474,0.0002316,2]
[426832171,1782921070000,-2337.0,0.00022933,3]
[426832184,1782921070000,-507.0,0.0002301,6]
[426832186,1782921070000,-517.0,0.00023019,2]
[426832181,1782921070000,-150.0,0.00023007,2]
[426832178,1782921070000,-10366.20044814,0.00023,2]
[426832183,1782921070000,-150.0,0.00023007,2]
[426832177,1782921070000,-1021.21024298,0.00023,2]
[426832180,1782921070000,-150.0,0.00023007,2]
[426832176,1782921070000,-13602.25062841,0.00023,2]
[426832173,1782921070000,-2432.58328592,0.00022997,2]
[426832174,1782921070000,-267.57778516,0.00022997,2]
[426832179,1782921070000,-150.0,0.00023007,2]
[426832257,1782921071000,-10366.20044814,0.00024,2]
[426832258,1782921071000,-168.0,0.00024,2]
[426832262,1782921071000,-400.0,0.00024,2]
[426832255,1782921071000,-160.0,0.00024,3]
[426832256,1782921071000,-881.88,0.00024,7]
[426832247,1782921071000,-2337.0,0.0002376,3]
[426832253,1782921071000,-150000.0,0.00024,2]
[426832252,1782921071000,-13602.25062841,0.00024,2]
[426832248,1782921071000,-412.5986539,0.00023799,2]
[426832250,1782921071000,-500.0,0.00023864,2]
[426832254,1782921071000,-160.0,0.00024,7]
[426832259,1782921071000,-158.0,0.00024,2]
[426832274,1782921071000,-151.0,0.00024324,2]
[426832260,1782921071000,-481.0,0.00024,2]
[426832263,1782921071000,-496.75296727,0.00024024,2]
[426832264,1782921071000,-160.0,0.00024026,3]
[426832261,1782921071000,-216.66345934,0.00024,3]
[426832266,1782921071000,-2432.58328592,0.00024093,2]
[426832268,1782921071000,-292360.6,0.000241,2]
[426832270,1782921071000,-160.0,0.0002416,3]
[426832273,1782921071000,-195.63,0.000243,14]
[426832269,1782921071000,-180.0,0.0002411,2]
[426832267,1782921071000,-267.57778516,0.00024093,2]
[426832271,1782921071000,-150.0,0.00024164,2]
[426832249,1782921071000,-2432.58328592,0.00023819,2]
[426832265,1782921071000,-646.0,0.00024075,5]
[426832246,1782921071000,-5000.0,0.00023748,3]
[426832234,1782921071000,-159.56634473,0.00023483,2]
[426832245,1782921071000,-150.0,0.00023737,7]
[426832272,1782921071000,-507.0,0.00024263,7]
[426832219,1782921071000,-155.20318751,0.00023463,2]
[426832222,1782921071000,-159.266688,0.00023463,2]
[426832220,1782921071000,-156.87808703,0.00023463,2]
[426832232,1782921071000,-162.46974428,0.00023481,2]
[426832225,1782921071000,-203.25394184,0.00023463,2]
[426832227,1782921071000,-215.85278969,0.00023481,2]
[426832231,1782921071000,-207.0977022,0.00023481,2]
[426832224,1782921071000,-169.9819896,0.00023463,2]
[426832223,1782921071000,-194.19484597,0.00023463,2]
[426832229,1782921071000,-155.65875478,0.00023481,2]
[426832228,1782921071000,-180.09386924,0.00023481,2]
[426832251,1782921071000,-1700.0,0.000239,8]
[426832226,1782921071000,-496.75296727,0.00023466,2]
[426832230,1782921071000,-170.92318967,0.00023481,2]
[426832233,1782921071000,-176.64527055,0.00023481,2]
[426832235,1782921071000,-442.30223081,0.000235,2]
[426832237,1782921071000,-1000.05402815,0.000235,2]
[426832236,1782921071000,-10366.20044814,0.000235,2]
[426832238,1782921071000,-2432.58328592,0.00023545,2]
[426832239,1782921071000,-267.57778516,0.00023545,2]
[426832240,1782921071000,-507.0,0.00023636,7]
[426832242,1782921071000,-500.0,0.00023669,2]
[426832241,1782921071000,-13602.25062841,0.00023667,2]
[426832243,1782921071000,-529.58,0.00023669,2]
[426832244,1782921071000,-10366.20044814,0.000237,2]
[426832221,1782921071000,-179.1106244,0.00023463,2]
[426832275,1782921071000,-13602.25062841,0.00024333,2]
[426832281,1782921071000,-3566.0,0.00024456,2]
[426832279,1782921071000,-529.58,0.00024399,2]
[426832307,1782921071000,-414.19540441,0.00024702,2]
[426832306,1782921071000,-174.70557871,0.00024701,2]
[426832322,1782921071000,-431.98823412,0.00024714,2]
[426832312,1782921071000,-378.58683919,0.00024714,2]
[426832323,1782921071000,-313.51053462,0.00024714,2]
[426832311,1782921071000,-313.90623354,0.00024714,2]
[426832313,1782921071000,-715.64983945,0.00024714,2]
[426832314,1782921071000,-310.17582457,0.00024714,2]
[426832315,1782921071000,-366.71060687,0.00024714,2]
[426832317,1782921071000,-692.60869115,0.00024714,2]
[426832316,1782921071000,-593.8447002,0.00024714,2]
[426832321,1782921071000,-304.63168673,0.00024714,2]
[426832319,1782921071000,-586.26104342,0.00024714,2]
[426832320,1782921071000,-639.08267152,0.00024714,2]
[426832318,1782921071000,-376.82357077,0.00024714,2]
[426832324,1782921071000,-486.29057421,0.00024714,2]
[426832326,1782921071000,-427.7886367,0.00024714,2]
[426832328,1782921071000,-312.59765918,0.00024714,2]
[426832329,1782921071000,-347.61468809,0.00024714,2]
[426832325,1782921071000,-244.60233473,0.00024714,2]
[426832276,1782921071000,-2337.0,0.00024346,3]
[426832333,1782921071000,-313.75617406,0.00024714,2]
[426832327,1782921071000,-223.15865041,0.00024714,2]
[426832330,1782921071000,-441.97965603,0.00024714,2]
[426832332,1782921071000,-310.40637502,0.00024714,2]
[426832305,1782921071000,-13602.25062841,0.00024667,2]
[426832302,1782921071000,-159.11,0.00024658,2]
[426832331,1782921071000,-395.35230779,0.00024714,2]
[426832303,1782921071000,-159.15,0.00024658,2]
[426832304,1782921071000,-150.0,0.00024666,20]
[426832278,1782921071000,-500.0,0.00024399,2]
[426832280,1782921071000,-8923.41575306,0.00024445,2]
[426832286,1782921071000,-935.0,0.00024456,2]
[426832284,1782921071000,-1362.0,0.00024456,2]
[426832282,1782921071000,-223.0,0.00024456,2]
[426832283,1782921071000,-1278.0,0.00024456,2]
[426832287,1782921071000,-3651.0,0.00024456,2]
[426832285,1782921071000,-1231.0,0.00024456,2]
[426832289,1782921071000,-457.90611043,0.0002458,2]
[426832293,1782921071000,-267.57778516,0.00024641,2]
[426832288,1782921071000,-152.0,0.00024519,7]
[426832291,1782921071000,-881.88,0.000246,7]
[426832277,1782921071000,-2432.58328592,0.00024367,2]
[426832292,1782921071000,-2432.58328592,0.00024641,2]
[426832290,1782921071000,-496.75296727,0.00024583,2]
[426832310,1782921071000,-302.93218442,0.00024714,2]
[426832301,1782921071000,-1343.22,0.00024658,2]
[426832308,1782921071000,-320.21541633,0.00024713,2]
[426832299,1782921071000,-1000.0,0.00024658,2]
[426832309,1782921071000,-396.84539893,0.00024713,2]
[426832297,1782921071000,-151.0,0.00024658,2]
[426832295,1782921071000,-758.099753,0.00024657,2]
[426832298,1782921071000,-278.309815,0.00024658,2]
[426832296,1782921071000,-151.0,0.00024658,2]
[426832294,1782921071000,-1000.0,0.00024657,2]
[426832300,1782921071000,-769.38,0.00024658,2]
[426832357,1782921072000,-678.22930553,0.000249,2]
[426832361,1782921072000,-1203.18,0.00024961,7]
[426832364,1782921072000,-412.5986539,0.00024965,2]
[426832359,1782921072000,-271.86427948,0.00024917,2]
[426832360,1782921072000,-2199.22252474,0.0002493,2]
[426832363,1782921072000,-1903.01,0.00024961,7]
[426832362,1782921072000,-19839.86,0.00024961,7]
[426832366,1782921072000,-150.0,0.00024986,7]
[426832374,1782921072000,-529.58,0.00024999,2]
[426832375,1782921072000,-529.58,0.00024999,2]
[426832368,1782921072000,-500.0,0.00024999,2]
[426832365,1782921072000,-154.72377765,0.00024967,2]
[426832369,1782921072000,-500.0,0.00024999,2]
[426832367,1782921072000,-205.42553888,0.0002499,2]
[426832373,1782921072000,-529.58,0.00024999,2]
[426832370,1782921072000,-500.0,0.00024999,2]
[426832372,1782921072000,-500.0,0.00024999,2]
[426832371,1782921072000,-500.0,0.00024999,2]
[426832377,1782921072000,-529.58,0.00024999,2]
[426832358,1782921072000,-2432.58328592,0.00024915,2]
[426832376,1782921072000,-529.58,0.00024999,2]
[426832355,1782921072000,-176.10334246,0.000249,2]
[426832344,1782921072000,-360.18773848,0.00024733,2]
[426832350,1782921072000,-319.13268947,0.00024734,2]
[426832335,1782921072000,-358.2212488,0.00024714,2]
[426832336,1782921072000,-218.4418404,0.00024714,2]
[426832334,1782921072000,-193.03841669,0.00024714,2]
[426832338,1782921072000,-388.38969193,0.00024714,2]
[426832337,1782921072000,-318.533376,0.00024714,2]
[426832339,1782921072000,-339.96397921,0.00024714,2]
[426832340,1782921072000,-406.50788367,0.00024714,2]
[426832342,1782921072000,-237.89857654,0.00024714,2]
[426832343,1782921072000,-431.70557937,0.00024733,2]